fUSD/lending_fUSD_20251011
["ID","MTS","AMOUNT","RATE_DAILY","PERIOD"]
[390807002,1760166113367,160.0,0.000273,120]
[390807003,1760166114323,160.0,0.000273,120]
[390807004,1760166125454,160.0,0.000273,120]
[390807005,1760166168666,159.0,0.000137,2]
[390807006,1760166178765,159.0,0.000137,2]
[390807007,1760166213054,250.0,0.0001331,2]
[390807010,1760166235349,2000.0,0.00027397,120]
[390807011,1760166241390,2000.0,0.00027397,120]
[390807012,1760166248181,2750.0,0.00027397,120]
[390807020,1760166519276,501.7,0.00027397,120]
[390807021,1760166521486,250.0,0.00013232,7]
[390807022,1760166549103,3447.7,0.00013223,2]
[390807034,1760166632340,-302.0,0.00013788,2]
[390807036,1760166632392,-494.24321194,0.00013788,2]
[390807037,1760166632402,-457.51111031,0.00013788,2]
[390807038,1760166632544,-803.67,0.00013788,2]
[390807039,1760166632555,-738.81888969,0.00013788,2]
[390807040,1760166632564,-250.0,0.00013788,2]
[390807041,1760166632573,-302.22234503,0.00013789,2]
[390807042,1760166632583,-166.67,0.00013877,2]
[390807043,1760166632592,-1200.0,0.00013921,2]
[390807044,1760166632601,-402.65808236,0.00013922,2]
[390807045,1760166632611,-500.0,0.00013922,2]
[390807046,1760166632622,-151.0,0.00013923,2]
[390807047,1760166632631,-4622.09169811,0.00013923,2]
[390807053,1760166638298,-1211.31173877,0.00013923,2]
[390807054,1760166638457,-758.98275571,0.00013923,2]
[390807055,1760166638469,-1973.36936652,0.00013923,2]
[390807056,1760166638479,-248.71531821,0.00013923,2]
[390807057,1760166638489,-621.78829552,0.00013923,2]
[390807058,1760166638499,-150.0,0.00013931,2]
[390807059,1760166638509,-3443.0,0.00013932,2]
[390807060,1760166638519,-150.99,0.00013932,2]
[390807061,1760166638529,-326.17,0.00013932,2]
[390807062,1760166638538,-4285.96701975,0.00013932,2]
[390807068,1760166640438,-13762.14,0.00013932,2]
[390807069,1760166640581,-5612.07092493,0.00013932,2]
[390807070,1760166640593,-3783.3846,0.00013932,2]
[390807071,1760166640628,-1304.34572906,0.00013932,2]
[390807072,1760166640639,-368.66499995,0.00013932,2]
[390807075,1760166643376,-2671.2507003,0.00013932,2]
[390807076,1760166643387,-860.4182736,0.00013932,2]
[390807077,1760166643398,-21613.41775241,0.00013932,2]
[390807078,1760166643408,-150.99,0.00013932,2]
[390807079,1760166643416,-299.99,0.00013932,2]
[390807080,1760166643426,-3198.11,0.00013932,2]
[390807081,1760166643435,-2655.5747476,0.00013978,2]
[390807082,1760166643446,-280.1281242,0.00013978,2]
[390807083,1760166643575,-421.3629776,0.00013978,2]
[390807089,1760166646350,-353.1699369,0.00013978,2]
[390807090,1760166646527,-5172.4527285,0.00013978,2]
[390807091,1760166646537,-6271.7727299,0.00014033,2]
[390807092,1760166646546,-488.54398544,0.00014075,2]
[390807093,1760166646555,-191.9502026,0.00014075,2]
[390807094,1760166646564,-3443.0,0.00014076,2]
[390807095,1760166646574,-3443.0,0.00014086,2]
[390807096,1760166646583,-2460.08831435,0.00014101,2]
[390807097,1760166646719,-982.91168565,0.00014101,2]
[390807098,1760166646729,-1000.0,0.00014125,2]
[390807099,1760166646739,-2500.0,0.00014258,2]
[390807100,1760166646749,-155.0,0.00014273,2]
[390807101,1760166646758,-578.0,0.00014273,2]
[390807102,1760166646767,-518.0,0.00014276,2]
[390807103,1760166646777,-413.0,0.00014278,2]
[390807104,1760166646785,-200.0,0.00014285,2]
[390807105,1760166646794,-253.23847976,0.00014291,2]
[390807106,1760166646806,-69.37222024,0.00014291,2]
[390807107,1760166646816,-646.65982734,0.00014291,2]
[390807108,1760166646826,-207.4,0.00014291,2]
[390807109,1760166646835,-500.0,0.000143,2]
[390807110,1760166646844,-4194.06795242,0.000143,2]
[390807111,1760166646857,-3305.93204758,0.000143,2]
[390807112,1760166646867,-4274.86795242,0.000143,2]
[390807115,1760166909639,500.0,0.000273,120]
[390807116,1760166927640,1818.63161696,0.00027397,120]
[390807117,1760166957820,500.0,0.000273,120]
[390807118,1760166968503,500.0,0.000273,120]
[390807119,1760166979809,500.0,0.000273,120]
[390807120,1760166991413,505.0,0.000273,120]
[390807121,1760167003144,500.0,0.000273,120]
[390807122,1760167014714,500.0,0.000273,120]
[390807123,1760167025237,650.0,0.000273,120]
[390807124,1760167081657,164.94,6.643e-05,2]
[390807125,1760167081871,164.94,7.473e-05,2]
[390807126,1760167082046,164.94,8.304e-05,2]
[390807127,1760167082252,164.94,9.134e-05,2]
[390807128,1760167082504,164.94,9.964e-05,2]
[390807129,1760167082642,164.94,0.00010795,2]
[390807130,1760167083994,164.94,0.00011625,2]
[390807131,1760167084061,164.94,0.00012455,2]
[390807132,1760167084219,164.94,0.00013286,2]
[390807133,1760167109612,553.59,0.00013245,2]
[390807134,1760167150504,1600.0,0.00013193,2]
[390807135,1760167186835,200.0,0.000133,4]
[390807136,1760167188931,500.0,0.000134,4]
[390807137,1760167191017,800.0,0.000135,4]
[390807138,1760167193110,1100.0,0.000136,4]
[390807139,1760167195387,292.37131546,0.000137,5]
[390807140,1760167195409,1007.62868454,0.000137,5]
[390807141,1760167238597,1500.0,0.00013157,2]
[390807142,1760167250713,200.0,0.00013136,2]
[390807143,1760167277994,200.0,0.00013699,2]
[390807144,1760167288025,12092.37131546,0.000135,2]
[390807145,1760167288045,15000.0,0.000135,2]
[390807146,1760167288065,15000.0,0.000135,2]
[390807147,1760167288085,15000.0,0.000135,2]
[390807148,1760167288104,15000.0,0.000135,2]
[390807149,1760167288124,15000.0,0.000135,2]
[390807150,1760167288145,15000.0,0.000135,2]
[390807151,1760167288167,15000.0,0.000135,2]
[390807152,1760167288188,15000.0,0.000135,2]
[390807153,1760167288218,15000.0,0.000135,2]
[390807154,1760167288238,15000.0,0.000135,2]
[390807155,1760167288259,15000.0,0.000135,2]
[390807156,1760167288284,15000.0,0.000135,2]
[390807157,1760167288305,15000.0,0.000135,2]
[390807158,1760167288324,15000.0,0.000135,2]
[390807159,1760167288344,15000.0,0.000135,2]
[390807160,1760167288364,15000.0,0.000135,2]
[390807161,1760167288384,15000.0,0.000135,2]
[390807162,1760167288404,15000.0,0.000135,2]
[390807163,1760167288426,15000.0,0.000135,2]
[390807164,1760167288445,15000.0,0.000135,2]
[390807165,1760167288465,15000.0,0.000135,2]
[390807166,1760167288484,15000.0,0.000135,2]
[390807167,1760167288504,15000.0,0.000135,2]
[390807168,1760167288524,15000.0,0.000135,2]
[390807169,1760167288544,15000.0,0.000135,2]
[390807170,1760167288564,15000.0,0.000135,2]
[390807171,1760167288584,15000.0,0.000135,2]
[390807172,1760167288604,15000.0,0.000135,2]
[390807173,1760167288623,15000.0,0.000135,2]
[390807174,1760167288642,15000.0,0.000135,2]
[390807175,1760167288662,15000.0,0.000135,2]
[390807176,1760167288689,15000.0,0.000135,2]
[390807177,1760167288709,15000.0,0.000135,2]
[390807178,1760167288729,15000.0,0.000135,2]
[390807179,1760167288749,15000.0,0.000135,2]
[390807180,1760167288768,15000.0,0.000135,2]
[390807181,1760167288789,15000.0,0.000135,2]
[390807182,1760167288809,15000.0,0.000135,2]
[390807183,1760167288829,15000.0,0.000135,2]
[390807184,1760167288848,15000.0,0.000135,2]
[390807185,1760167288868,15000.0,0.000135,2]
[390807186,1760167288888,15000.0,0.000135,2]
[390807187,1760167288908,15000.0,0.000135,2]
[390807188,1760167288934,15000.0,0.000135,2]
[390807189,1760167288954,15000.0,0.000135,2]
[390807190,1760167288974,15000.0,0.000135,2]
[390807191,1760167288994,15000.0,0.000135,2]
[390807192,1760167289014,15000.0,0.000135,2]
[390807193,1760167289034,15000.0,0.000135,2]
[390807194,1760167289053,15000.0,0.000135,2]
[390807195,1760167289073,13811.04868454,0.000135,2]
[390807196,1760167350080,1013.84,0.00013979,15]
[390807197,1760167350322,1013.84,0.00013979,15]
[390807198,1760167350556,1013.84,0.00013979,15]
[390807199,1760167351361,1013.84,0.00013979,15]
[390807200,1760167351564,1013.84,0.00013979,15]
[390807201,1760167351788,1013.84,0.00013979,15]
[390807202,1760167351891,1013.84,0.00013979,15]
[390807203,1760167351986,1013.84,0.00013979,15]
[390807204,1760167352072,1013.84,0.00013979,15]
[390807205,1760167352211,1013.84,0.00013979,15]
[390807206,1760167352397,1013.84,0.00013979,15]
[390807207,1760167352622,1013.84,0.00013979,15]
[390807208,1760167352861,1013.84,0.00013979,15]
[390807209,1760167353149,1013.84,0.00013979,15]
[390807210,1760167353398,916.24,0.00013979,15]
[390807211,1760167382610,558.22,0.00013018,2]
[390807212,1760167397510,500.0,0.00027058,120]
[390807213,1760167506631,366.534376,0.00013696,2]
[390807214,1760167524959,264.19693946,0.000108,2]
[390807215,1760167524982,101.58107285,0.000108,2]
[390807216,1760167535256,1098.85001053,9e-05,2]
[390807218,1760167556515,151.0,0.00027397,120]
[390807219,1760167560978,5327.41997781,8e-05,2]
[390807220,1760167565399,4252.92349945,0.00011,2]
[390807221,1760167575249,207.89,0.00027397,120]
[390807222,1760167588499,666.0,0.00013033,3]
[390807223,1760167615975,920.24,0.00013699,2]
[390807226,1760167638547,2632.98543936,0.000133,4]
[390807227,1760167638569,1967.01456064,0.000133,4]
[390807228,1760167640608,9300.0,0.000134,4]
[390807229,1760167642702,3732.98543936,0.000135,4]
[390807230,1760167642726,10167.01456064,0.000135,4]
[390807231,1760167644943,4832.98543936,0.000136,4]
[390807232,1760167644968,13767.01456064,0.000136,4]
[390807233,1760167647008,1232.98543936,0.000137,5]
[390807234,1760167647029,15000.0,0.000137,5]
[390807235,1760167647050,6967.01456064,0.000137,5]
[390807238,1760167675507,500.0,0.00014794,120]
[390807239,1760167675757,499.49362072,0.00014794,120]
[390807240,1760167688667,166.0,0.00027397,120]
[390807243,1760167719218,877.73530608,0.0001,2]
[390807249,1760167756398,-2412.0,0.00030685,120]
[390807250,1760167756426,-1000.0,0.00030685,60]
[390807251,1760167756453,-1000.0,0.00030685,30]
[390807252,1760167756481,-214.3,0.00030685,30]
[390807253,1760167756508,-214.3,0.00030685,30]
[390807254,1760167756534,-214.3,0.00030685,30]
[390807255,1760167756560,-1000.0,0.00030685,60]
[390807256,1760167756587,-1000.0,0.00030685,30]
[390807257,1760167756612,-274250.4502,0.00030685,30]
[390807258,1760167756639,-1000.0,0.00030685,60]
[390807259,1760167756665,-1000.0,0.00030685,30]
[390807260,1760167756692,-4786.79,0.00030685,120]
[390807261,1760167756718,-4786.79,0.00030685,120]
[390807262,1760167756745,-4786.79,0.00030685,120]
[390807263,1760167756771,-4786.79,0.00030685,120]
[390807264,1760167756799,-4786.79,0.00030685,120]
[390807265,1760167756825,-4786.79,0.00030685,120]
[390807266,1760167756855,-4786.79,0.00030685,120]
[390807267,1760167756882,-4786.79,0.00030685,120]
[390807268,1760167756909,-4786.79,0.00030685,120]
[390807269,1760167756935,-4786.79,0.00030685,120]
[390807270,1760167756960,-4786.79,0.00030685,120]
[390807271,1760167756987,-4786.79,0.00030685,120]
[390807272,1760167757013,-4786.79,0.00030685,120]
[390807273,1760167757040,-4786.79,0.00030685,120]
[390807274,1760167757068,-779.05815557,0.00030685,60]
[390807275,1760167757096,-4786.79,0.00030685,120]
[390807276,1760167757122,-4786.79,0.00030685,120]
[390807277,1760167757149,-4786.79,0.00030685,120]
[390807278,1760167757176,-4786.79,0.00030685,120]
[390807279,1760167757203,-4786.79,0.00030685,120]
[390807280,1760167757230,-4786.79,0.00030685,120]
[390807281,1760167757258,-4786.79,0.00030685,120]
[390807282,1760167757284,-4786.79,0.00030685,120]
[390807283,1760167757313,-4786.79,0.00030685,120]
[390807284,1760167757340,-4786.79371393,0.00030685,120]
[390807285,1760167757367,-16641.33,0.00030685,120]
[390807286,1760167757398,-16641.33,0.00030685,120]
[390807287,1760167757424,-16641.33,0.00030685,120]
[390807288,1760167757453,-16641.33,0.00030685,120]
[390807289,1760167757483,-16641.33,0.00030685,120]
[390807290,1760167757512,-16641.33,0.00030685,120]
[390807292,1760167757542,-16641.33,0.00030685,120]
[390807293,1760167757571,-16641.33,0.00030685,120]
[390807294,1760167757600,-16641.33,0.00030685,120]
[390807295,1760167757628,-16641.33,0.00030685,120]
[390807296,1760167757656,-16641.33,0.00030685,120]
[390807297,1760167757685,-16641.33,0.00030685,120]
[390807298,1760167757713,-16641.33,0.00030685,120]
[390807299,1760167757740,-16641.33,0.00030685,120]
[390807300,1760167757768,-16641.33,0.00030685,120]
[390807301,1760167757794,-1000.0,0.00030685,30]
[390807302,1760167757823,-16641.33,0.00030685,120]
[390807303,1760167757851,-16641.33,0.00030685,120]
[390807304,1760167757879,-16641.33,0.00030685,120]
[390807305,1760167757908,-16641.33,0.00030685,120]
[390807306,1760167757936,-16641.33,0.00030685,120]
[390807307,1760167757963,-16641.33,0.00030685,120]
[390807308,1760167757992,-16641.33,0.00030685,120]
[390807309,1760167758022,-16641.33,0.00030685,120]
[390807310,1760167758052,-16641.49057271,0.00030685,120]
[390807311,1760167758079,-1000.0,0.00030685,30]
[390807312,1760167758105,-200.78960291,0.00030685,120]
[390807313,1760167758133,-3000.0,0.00030685,120]
[390807314,1760167758160,-806.26319365,0.00030685,30]
[390807315,1760167758186,-1000.0,0.00030685,30]
[390807316,1760167758212,-438.89520328,0.00030685,120]
[390807317,1760167758238,-4380.87761686,0.00030685,70]
[390807318,1760167758265,-150.0,0.00030685,30]
[390807319,1760167758290,-880.55447366,0.00030685,120]
[390807320,1760167758318,-500.0,0.00030685,120]
[390807321,1760167758346,-500.0,0.00030685,120]
[390807322,1760167758374,-500.0,0.00030685,120]
[390807323,1760167758405,-500.0,0.00030685,120]
[390807324,1760167758433,-500.0,0.00030685,120]
[390807325,1760167758461,-500.0,0.00030685,120]
[390807326,1760167758489,-500.0,0.00030685,120]
[390807327,1760167758518,-500.0,0.00030685,120]
[390807328,1760167758547,-500.0,0.00030685,120]
[390807329,1760167758577,-302.25,0.00030685,120]
[390807330,1760167758879,-193.57354993,0.00030685,120]
[390807331,1760167758909,-500.0,0.00030685,120]
[390807332,1760167758938,-500.0,0.00030685,120]
[390807333,1760167758967,-500.0,0.00030685,120]
[390807334,1760167758995,-500.0,0.00030685,120]
[390807335,1760167759022,-500.0,0.00030685,120]
[390807336,1760167759050,-500.0,0.00030685,120]
[390807337,1760167759078,-500.0,0.00030685,120]
[390807338,1760167759104,-500.0,0.00030685,120]
[390807339,1760167759132,-500.0,0.00030685,120]
[390807340,1760167759159,-500.0,0.00030685,120]
[390807341,1760167759186,-500.0,0.00030685,120]
[390807342,1760167759214,-500.0,0.00030685,120]
[390807343,1760167759241,-500.0,0.00030685,120]
[390807344,1760167759269,-500.0,0.00030685,120]
[390807345,1760167759297,-500.0,0.00030685,120]
[390807346,1760167759327,-500.0,0.00030685,120]
[390807347,1760167759354,-403.94,0.00030685,120]
[390807348,1760167759383,-500.0,0.00030685,120]
[390807349,1760167759414,-500.0,0.00030685,120]
[390807350,1760167759444,-500.0,0.00030685,120]
[390807351,1760167759472,-500.0,0.00030685,120]
[390807352,1760167759501,-500.0,0.00030685,120]
[390807353,1760167759529,-500.0,0.00030685,120]
[390807354,1760167759557,-500.0,0.00030685,120]
[390807355,1760167759586,-500.0,0.00030685,120]
[390807356,1760167759613,-500.0,0.00030685,120]
[390807357,1760167759642,-500.0,0.00030685,120]
[390807358,1760167759671,-411.24503369,0.00030685,120]
[390807359,1760167759698,-16942.16962597,0.00030685,120]
[390807360,1760167759725,-5927.93572107,0.00030685,120]
[390807361,1760167759752,-2792.16,0.00030685,120]
[390807362,1760167759778,-780.96159127,0.00030685,120]
[390807363,1760167759807,-2901.11913269,0.00030685,61]
[390807364,1760167759833,-1995.68173424,0.00030685,30]
[390807365,1760167759861,-2737.81337038,0.00030685,90]
[390807366,1760167759888,-2383.31429505,0.00030685,120]
[390807367,1760167759916,-367.76775706,0.00030685,60]
[390807368,1760167759942,-2400.77391295,0.00030685,120]
[390807369,1760167759969,-357.43834208,0.00030685,120]
[390807370,1760167759996,-456.587002,0.00030685,91]
[390807371,1760167760023,-1481.00967908,0.00030685,30]
[390807372,1760167760050,-175.53752283,0.00030685,30]
[390807373,1760167760080,-467.73063445,0.00030685,120]
[390807374,1760167760108,-2962.21220072,0.00030685,120]
[390807375,1760167760136,-677.14946565,0.00030685,120]
[390807376,1760167760163,-181.59842653,0.00030685,120]
[390807377,1760167760190,-310.599949,0.00030685,30]
[390807378,1760167760217,-243.89584619,0.00030685,30]
[390807379,1760167760244,-2485.37936897,0.00030685,120]
[390807380,1760167760271,-2062.22205478,0.00030685,120]
[390807381,1760167760299,-620.0,0.00030685,30]
[390807382,1760167760326,-2798.7267904,0.00030685,120]
[390807383,1760167760352,-207.03229654,0.00030685,30]
[390807384,1760167760379,-2321.04385497,0.00030685,120]
[390807385,1760167760409,-1535.37925503,0.00030685,120]
[390807386,1760167760435,-903.181787,0.00030685,120]
[390807387,1760167760461,-795.97547001,0.00030685,120]
[390807388,1760167760490,-859.73401859,0.00030685,90]
[390807389,1760167760516,-433.81875422,0.00030685,120]
[390807390,1760167760543,-519.40472592,0.00030685,30]
[390807391,1760167760572,-200.0,0.00030685,120]
[390807392,1760167760600,-332.88054104,0.00030685,60]
[390807393,1760167760626,-185.25648095,0.00030685,120]
[390807394,1760167760654,-824.00800672,0.00030685,120]
[390807395,1760167760681,-605.16546023,0.00030685,30]
[390807396,1760167760708,-2024.08246339,0.00030685,120]
[390807397,1760167760736,-516.80745898,0.00030685,120]
[390807398,1760167760764,-304.02121588,0.00030685,60]
[390807399,1760167760793,-2240.45745145,0.00030685,120]
[390807400,1760167760820,-193.78441064,0.00030685,30]
[390807401,1760167760848,-267.11395329,0.00030685,120]
[390807402,1760167760874,-3330.04270841,0.00030685,120]
[390807403,1760167760900,-272.1142528,0.00030685,120]
[390807404,1760167760928,-268.4560314,0.00030685,120]
[390807405,1760167760957,-1591.04464267,0.00030685,120]
[390807406,1760167760984,-477.38317738,0.00030685,120]
[390807407,1760167761011,-1763.00927136,0.00030685,120]
[390807408,1760167761038,-496.81840311,0.00030685,120]
[390807409,1760167761064,-1323.1752782,0.00030685,120]
[390807410,1760167761090,-2271.61350569,0.00030685,120]
[390807411,1760167761117,-169.1,0.00030685,30]
[390807412,1760167761145,-2192.59064729,0.00030685,31]
[390807413,1760167761173,-395.38973858,0.00030685,60]
[390807414,1760167761201,-185.43678148,0.00030685,120]
[390807415,1760167761226,-915.72221695,0.00030685,120]
[390807416,1760167761253,-561.98145564,0.00030685,120]
[390807417,1760167761279,-1895.99628983,0.00030685,120]
[390807418,1760167761306,-1464.82733813,0.00030685,120]
[390807419,1760167761332,-397.21497629,0.00030685,60]
[390807420,1760167761358,-1355.83842763,0.00030685,120]
[390807421,1760167761386,-2148.1542612,0.00030685,120]
[390807422,1760167761416,-1555.02870219,0.00030685,120]
[390807423,1760167761444,-892.85078203,0.00030685,120]
[390807424,1760167761471,-1258.84121531,0.00030685,120]
[390807425,1760167761497,-1254.73835207,0.00030685,120]
[390807426,1760167761523,-546.39670045,0.00030685,120]
[390807427,1760167761554,-3459.79335639,0.00030685,120]
[390807428,1760167761580,-1370.01367832,0.00030685,120]
[390807429,1760167761607,-756.0,0.00030685,120]
[390807430,1760167761635,-1163.98370452,0.00030685,120]
[390807431,1760167761664,-2603.9482212,0.00030685,120]
[390807432,1760167761692,-506.02340334,0.00030685,120]
[390807433,1760167761720,-558.65694713,0.00030685,120]
[390807434,1760167761959,-2909.50416082,0.00030685,120]
[390807435,1760167762001,-2355.0872996,0.00030685,120]
[390807436,1760167762028,-701.78154531,0.00030685,120]
[390807437,1760167762059,-728.50219851,0.00030685,120]
[390807438,1760167762086,-1702.77712327,0.00030685,120]
[390807439,1760167762112,-1288.84771365,0.00030685,120]
[390807440,1760167762139,-1642.54251576,0.00030685,120]
[390807441,1760167762167,-246.03134937,0.00030685,120]
[390807442,1760167762194,-796.73909166,0.00030685,120]
[390807443,1760167762220,-1440.21443097,0.00030685,120]
[390807444,1760167762247,-361.6302797,0.00030685,30]
[390807445,1760167762273,-507.67483236,0.00030685,30]
[390807446,1760167762300,-1851.33634406,0.00030685,120]
[390807447,1760167762330,-2599.66332604,0.00030685,60]
[390807448,1760167762357,-362.90886067,0.00030685,120]
[390807449,1760167762385,-2449.34426834,0.00030685,120]
[390807451,1760167762416,-307.31544707,0.00030685,120]
[390807452,1760167762444,-568.89276092,0.00030685,30]
[390807453,1760167762471,-500.0,0.00030685,120]
[390807454,1760167762498,-151.14125821,0.00030685,120]
[390807455,1760167762525,-183.59820217,0.00030685,120]
[390807456,1760167762556,-330.50008906,0.00030685,120]
[390807457,1760167775502,-160.0,0.00016685,30]
[390807458,1760167775774,-2623.26215386,0.0002,30]
[390807459,1760167775802,-872.19736585,0.0002,30]
[390807460,1760167775831,-254.28414489,0.0002,30]
[390807461,1760167775858,-1000.0,0.0002,90]
[390807462,1760167776666,-2584.48,0.00024685,30]
[390807463,1760167776699,-216.0,0.0002493,30]
[390807464,1760167776758,-1086.88767321,0.00025,60]
[390807465,1760167776785,-507.54653893,0.00025,30]
[390807466,1760167776811,-4734.86,0.00025,30]
[390807467,1760167776900,-1377.8,0.00026,30]
[390807468,1760167776928,-1377.8,0.000265,30]
[390807469,1760167776958,-475.23572958,0.00027,30]
[390807470,1760167776982,-456.41002118,0.00027,30]
[390807471,1760167777008,-475.23572958,0.00027,30]
[390807472,1760167777034,-27262.39311555,0.00027,30]
[390807473,1760167777060,-1377.8,0.00027,30]
[390807474,1760167777090,-167.13671768,0.0002739,30]
[390807475,1760167777117,-2000.0,0.00027397,30]
[390807476,1760167777143,-2000.0,0.00027397,30]
[390807477,1760167777168,-2000.0,0.00027397,30]
[390807478,1760167777556,-2000.0,0.00027397,30]
[390807479,1760167777586,-2000.0,0.00027397,30]
[390807480,1760167777612,-2000.0,0.00027397,30]
[390807481,1760167777640,-2000.0,0.00027397,30]
[390807482,1760167777667,-2000.0,0.00027397,30]
[390807483,1760167777693,-2000.0,0.00027397,30]
[390807484,1760167777720,-2000.0,0.00027397,30]
[390807485,1760167777748,-2000.0,0.00027397,30]
[390807486,1760167777774,-2000.0,0.00027397,30]
[390807487,1760167777800,-2000.0,0.00027397,30]
[390807488,1760167777826,-2000.0,0.00027397,30]
[390807489,1760167777852,-2000.0,0.00027397,30]
[390807490,1760167777889,-2000.0,0.00027397,30]
[390807491,1760167777917,-2000.0,0.00027397,30]
[390807492,1760167777945,-2000.0,0.00027397,30]
[390807493,1760167777971,-2000.0,0.00027397,30]
[390807494,1760167777997,-1851.32408468,0.00027397,30]
[390807495,1760167778026,-3234.3,0.00027397,30]
[390807496,1760167778052,-3234.3,0.00027397,30]
[390807497,1760167778081,-3234.3,0.00027397,30]
[390807498,1760167778114,-3234.3,0.00027397,30]
[390807499,1760167778144,-3234.3,0.00027397,30]
[390807500,1760167778173,-3234.3,0.00027397,30]
[390807501,1760167778202,-3234.3,0.00027397,30]
[390807502,1760167778231,-3234.3,0.00027397,30]
[390807503,1760167778260,-3234.3,0.00027397,30]
[390807504,1760167778288,-3234.3,0.00027397,30]
[390807505,1760167778318,-3234.3,0.00027397,30]
[390807506,1760167778347,-3234.3,0.00027397,30]
[390807507,1760167778375,-3234.3,0.00027397,30]
[390807508,1760167778405,-3234.3,0.00027397,30]
[390807509,1760167778433,-3234.3,0.00027397,30]
[390807510,1760167778463,-3234.3,0.00027397,30]
[390807511,1760167778493,-3234.3,0.00027397,30]
[390807512,1760167778521,-3234.3,0.00027397,30]
[390807513,1760167778550,-3234.3,0.00027397,30]
[390807514,1760167778577,-3234.3,0.00027397,30]
[390807515,1760167778610,-3234.3,0.00027397,30]
[390807516,1760167778641,-3234.3,0.00027397,30]
[390807517,1760167778670,-3234.3,0.00027397,30]
[390807518,1760167778699,-3234.53768861,0.00027397,30]
[390807519,1760167778730,-151.0,0.00027397,30]
[390807520,1760167778758,-151.0,0.00027397,30]
[390807521,1760167778786,-151.0,0.00027397,30]
[390807522,1760167778815,-151.0,0.00027397,30]
[390807523,1760167778844,-151.0,0.00027397,30]
[390807524,1760167778874,-245.561385,0.00027397,30]
[390807525,1760167778903,-1035.0,0.000274,120]
[390807526,1760167778933,-201.94233449,0.00027418,120]
[390807527,1760167778964,-200.0,0.000275,120]
[390807528,1760167778993,-1377.8,0.000275,30]
[390807529,1760167779031,-169.0,0.00027787,120]
[390807530,1760167779075,-475.23572958,0.00028,30]
[390807531,1760167779105,-2193.6231664,0.00028,30]
[390807532,1760167779135,-1377.8,0.00028,30]
[390807533,1760167779165,-1340.05,0.00028138,30]
[390807534,1760167779195,-201.94233449,0.00028332,120]
[390807535,1760167779224,-169.6577633,0.00028342,30]
[390807536,1760167779255,-2500.0,0.000284,120]
[390807537,1760167779284,-1377.8,0.000285,30]
[390807538,1760167779315,-2981.91783231,0.0002876,60]
[390807539,1760167779347,-1059.0,0.00028767,120]
[390807540,1760167779378,-150.0,0.00028838,120]
[390807541,1760167779408,-196.10265166,0.000289,30]
[390807542,1760167779439,-1340.05,0.00028987,30]
[390807543,1760167779473,-171.0,0.00029,30]
[390807544,1760167779517,-420.0,0.00029,30]
[390807545,1760167779547,-167.0,0.00029,30]
[390807546,1760167779579,-1377.8,0.00029,30]
[390807547,1760167779623,-1444.0,0.00029041,120]
[390807548,1760167779674,-150.0,0.00029122,120]
[390807549,1760167779718,-500.0,0.00029158,120]
[390807550,1760167779749,-150.0,0.00029182,120]
[390807551,1760167779778,-201.94233449,0.00029245,120]
[390807553,1760167779809,-3630.13395114,0.00029352,120]
[390807554,1760167779842,-150.0,0.00029425,120]
[390807555,1760167779876,-1340.05,0.00029836,30]
[390807556,1760167779906,-150.0,0.0002991,120]